Cogmind - Beta 13 @@@ ROGUE MODE // 2024.04.14 @ 15:59:09 Player: Exceptionally Mediocre Result: Destroyed by X-62 Marksman with Pulse Rifle Performance ------------- Evolutions (4) 2000 Regions Visited (5) 1000 Robots Destroyed (50) 250 Value Destroyed (1007) 1007 Prototype IDs (4) 80 Alien Tech Used (0) 0 Bonus (64) 64 TOTAL SCORE: 4401 Bonus ------- Follower Combat Kills 90 Friendly Fire -26 Cogmind --------- Core Integrity 0/850 Matter 290/300 Energy 96/100 System Corruption 5% Temperature Cool (9) Movement Core (100) Ox1 Location -6/Factory Parts ------- > --- POWER (2) -------- (None) > --- PROPULSION (4) --- (None) > --- UTILITY (5) ------ (None) > --- WEAPON (4) ------- Heavy Assault Rifle Power Sword > --- INVENTORY (5) ---- High-capacity Storage Unit Improved Trap Scanner Advanced Signal Interpreter Heavy Flail Power Sword Peak State ------------ > --- POWER ------------ Nuclear-Deuterium Core > --- PROPULSION ------- FC-Compact Exoskeleton > --- UTILITY ---------- Armored Scrap Engine High-capacity Storage Unit Salvage Targeting Computer > --- WEAPON ----------- Laser Particle Construct/C Kinetic Gauss Construct/G Power Sword > --- INVENTORY -------- Improved Trap Scanner Advanced Signal Interpreter Scrap Shield Heavy Flail Power Sword Power Sword [Rating: 41] Favorites ----------- Power Ion Engine Engine Ion Engine Power Core Constructs Propulsion Aluminum Leg Leg Aluminum Leg Wheel Wheel Utility Armored Scrap Engine Device Armored Scrap Engine Storage High-capacity Storage Unit Processor Salvage Targeting Computer Protection Hardened Medium Armor Plating Weapon Constructs Energy Cannon Heavy Particle Cannon Ballistic Gun Constructs Ballistic Cannon Constructs Launcher Grenade Launcher Impact Weapon Heavy Flail Slashing Weapon Power Sword Build | -11 -10 -10 -10 -8 -6 ------- Run | Yrd Mat Min Sub Rec Fac Slots Evolved 8 | . . . . . 8 Power 1 | . . . . . 1 Propulsion 2 | . . . . . 2 Utility 3 | . . . . . 3 Weapon 2 | . . . . . 2 Parts Attached 35 | 8 8 3 8 1 7 Power 3 | 2 . 1 . . . Engine 3 | 2 . 1 . . . Core . | . . . . . . Reactor . | . . . . . . Propulsion 4 | 2 1 . . . 1 Treads . | . . . . . . Leg 3 | 2 1 . . . . Wheel 1 | . . . . . 1 Hover . | . . . . . . Flight . | . . . . . . Utility 11 | 1 3 . 3 1 3 Device 3 | . 1 . 1 1 . Storage 4 | 1 2 . . . 1 Processor 1 | . . . . . 1 Hackware . | . . . . . . Protection 3 | . . . 2 . 1 Artifact . | . . . . . . Weapon 17 | 3 4 2 5 . 3 Energy Gun . | . . . . . . Energy Cannon 1 | . . . 1 . . Ballistic Gun 4 | 3 . . . . 1 Ballistic Cannon 5 | . 2 1 2 . . Launcher 3 | . 1 . 2 . . Special Weapon . | . . . . . . Impact Weapon 2 | . 1 1 . . . Slashing Weapon 2 | . . . . . 2 Piercing Weapon . | . . . . . . Special Melee Weapon . | . . . . . . Unidentified Prototypes . | . . . . . . Parts Lost 11 | . . . . . 11 Power 1 | . . . . . 1 Propulsion 4 | . . . . . 4 Utility 3 | . . . . . 3 Weapon 3 | . . . . . 3 Highest Loss Streak 6 | . . . . . 6 To Critical Strikes . | . . . . . . Average Slot Usage (%) 80 | . 98 100 100 69 37 Engine 11 | . 14 14 14 10 . Core 1 | . . . . 2 3 Leg 15 | . 28 28 28 3 4 Wheel 4 | . . . . 9 . Device 10 | . 12 14 . 13 5 Storage 7 | . 14 14 14 . 5 Protection 2 | . . . 13 . . Energy Gun 2 | . . . . 4 . Energy Cannon 2 | . . . 5 2 . Ballistic Gun 2 | . 12 . . . 2 Ballistic Cannon 16 | . 7 21 14 19 5 Launcher 2 | . 6 . 7 . . Impact Weapon 1 | . 1 6 . . . Naked Turns . | . . . . . . Heaviest Build 67 | 13 52 52 62 15 67 Greatest Support 43 | 20 20 20 20 43 43 Greatest Overweight (x) 22 | 4 2 2 3 4 22 Average Overweight (x) . | 1 . 2 2 . 1 Largest Inventory Capacity 20 | 8 20 20 20 20 20 Average Capacity 11 | 7 11 20 20 5 18 Most Carried 20 | 2 20 20 20 20 8 Average Carried 10 | 1 9 19 19 4 6 Final Capacity 20 | 8 20 20 20 5 5 Final Carried 20 | 2 20 20 20 5 5 Scrap Engine Consumption 87 | . . . . 77 10 Constructs Created 5 | . . . . 4 1 Constructs Modified 24 | . . . . 23 1 Class Distribution -------------------- 54% | Mutant 45% | Construct Dominant Class ---------------- Mutant | -10/Materials Mutant | -10/Mines Mutant | -10/Subcaves Construct | -8/Recycling Construct | -6/Factory Resources | -11 -10 -10 -10 -8 -6 ----------- Run | Yrd Mat Min Sub Rec Fac Matter Collected 1118 | 236 304 20 258 251 49 Remotely . | . . . . . . Salvage Created 1946 | . 388 . 125 1075 358 Parts 116 | . 36 . 14 44 22 Haulers Intercepted 2 | . 2 . . . . Recyclers Shooed 3 | . . . . 2 1 Parts Field Recycled . | . . . . . . Retrieved Matter . | . . . . . . Parts Self-Destructed 10 | . . . 10 . . Prevented . | . . . . . . Kills | -11 -10 -10 -10 -8 -6 ------- Run | Yrd Mat Min Sub Rec Fac Combat Hostiles Destroyed 21 | . 11 . 4 3 3 Melee 2 | . . . . . 2 Guns 6 | . 5 . . 1 . Cannons 5 | . 1 . 2 1 1 AOE 7 | . 5 . 2 . . Classes Destroyed 12 | . 4 . 2 3 3 Worker 1 | . . . . . 1 Builder 8 | . . . . 5 3 Hauler 2 | . 2 . . . . Recycler 13 | . . . . 12 1 Operator 3 | . 3 . . . . Turret 2 | . . . 2 . . Swarmer 5 | . 3 . 2 . . Grunt 8 | . 8 . . . . Sentry 3 | . . . . 3 . Hunter 2 | . . . . . 2 Programmer 1 | . . . . . 1 Subdweller 2 | . . . 2 . . Best Kill Streak 5 | . 3 . 4 5 4 Combat Bots Only 3 | . 3 . 2 2 1 Max Kills in Single Turn 2 | . 2 . 1 1 1 Gunslinging . | . . . . . . Exploded 1 | . 1 . 1 . . Melee 1 | . . . . . 1 Uniques/NPCs Destroyed . | . . . . . . Combat | -11 -10 -10 -10 -8 -6 -------- Run | Yrd Mat Min Sub Rec Fac Hostile Shots Fired 264 | . 34 . 34 16 180 Missed 79 | . 15 . 15 4 45 Damage Taken 3005 | . 299 . 166 170 2370 Core 950 | . 44 . 27 28 851 Absorbed by Shields . | . . . . . . Regen/Repaired (Parts) 103 | . . . . 98 5 Core Remaining (%) 80 | 100 . . . 60 . Volleys Fired 101 | . 32 . 11 46 12 Largest 2 | . 2 . 2 2 2 Hottest 114 | . 65 . 114 114 97 Shots Fired 189 | . 54 1 21 92 21 Gun 57 | . 34 . . 14 9 Cannon 120 | . 11 1 18 78 12 Launcher 12 | . 9 . 3 . . Special . | . . . . . . Kinetic 96 | . 45 1 9 32 9 Thermal 81 | . . . 9 60 12 Explosive 12 | . 9 . 3 . . Electromagnetic . | . . . . . . Robot Hit Streak 9 | . 6 . 4 9 6 Robot Miss Streak 6 | . 6 1 4 4 2 Penetration Max 1 | . . . . . 1 Secondary Targets . | . . . . . . Shots Hit Robots 123 | . 26 . 11 56 30 Core Hits 66 | . 28 . 8 22 8 Critical Kills 1 | . . . . 1 . Critical Parts Destroyed . | . . . . . . Critical Strikes 7 | . . . 1 5 1 Burn 1 | . . . . 1 . Meltdown 1 | . . . . 1 . Blast 4 | . . . 1 3 . Sever 1 | . . . . . 1 Melee Attacks 30 | . 2 12 . . 16 Impact 14 | . 2 12 . . . Slashing 16 | . . . . . 16 Piercing . | . . . . . . Sneak Attacks 6 | . . . . . 6 Combat Hostiles . | . . . . . . Follow-up Attacks 1 | . . . . . 1 Damage Inflicted 3308 | . 638 . 344 1227 1099 Guns 548 | . 203 . . 189 156 Cannons 1542 | . 84 . 269 1038 151 Explosions 426 | . 351 . 75 . . Melee 792 | . . . . . 792 Ramming . | . . . . . . Kinetic 1011 | . 287 . 144 424 156 Thermal 1079 | . . . 125 803 151 Explosive 426 | . 351 . 75 . . Electromagnetic . | . . . . . . Impact . | . . . . . . Slashing 792 | . . . . . 792 Piercing . | . . . . . . Highest Corruption 5 | . 2 2 2 2 5 Average Corruption 2 | . 2 2 2 2 4 Corruption Purged . | . . . . . . Corruption Blocked . | . . . . . . Effects 67 | . 7 15 10 32 3 Message Errors 13 | . 2 2 1 8 . Matter Fused 21 | . 1 5 3 11 1 Heat Flow Errors 8 | . . 1 3 4 . Energy Discharges 7 | . 1 1 . 5 . Parts Fused 2 | . 2 . . . . Data Loss (minor) 9 | . . 1 2 4 2 Data Loss (major) 4 | . 1 3 . . . Misfires 2 | . . 1 1 . . Alerts 1 | . . 1 . . . Overload Shots . | . . . . . . Overflow Damage 260 | . 28 . . 12 220 Projectiles 12 | . . . . 12 . Explosions 28 | . 28 . . . . Melee 220 | . . . . . 220 Knockbacks 4 | . 1 . . 3 . Impact . | . . . . . . Kinetic 4 | . 1 . . 3 . Secondary . | . . . . . . Self-Inflicted Damage 100 | . 92 . 8 . . Shots 5 | . 4 . 1 . . Rammed . | . . . . . . Targets Rammed . | . . . . . . Kicked . | . . . . . . Crushed . | . . . . . . Highest Temperature 266 | . 15 186 241 266 . Average Temperature 60 | . 5 99 51 64 . Received Heat Transfer 324 | . 90 . 99 54 81 Siege Activations . | . . . . . . Robots Corrupted . | . . . . . . Combat Hostiles . | . . . . . . Parts Fried . | . . . . . . Impact Corruptions . | . . . . . . Robots Melted 2 | . . . . 2 . Combat Hostiles 1 | . . . . 1 . Parts Melted 1 | . . . . 1 . Heat Transferred 1887 | . . . 185 1443 259 Parts Sabotaged . | . . . . . . Parts Stolen . | . . . . . . Parts Stripped . | . . . . . . Power Chain Reactions . | . . . . . . Alert | -11 -10 -10 -10 -8 -6 ------- Run | Yrd Mat Min Sub Rec Fac Peak Influence 309 | . 230 31 . 309 101 Initial 268 | . . 31 . 268 50 Average 75 | . 140 14 . 82 51 Maximum Alert Level 1 | . 1 . . 1 . Low Security (%) 84 | 100 61 100 . 82 100 Level 1 15 | . 38 . . 17 . Level 2 . | . . . . . . Level 3 . | . . . . . . Level 4 . | . . . . . . Level 5 . | . . . . . . High Security . | . . . . . . Max Security . | . . . . . . Squads Dispatched 7 | . 3 1 . . 3 Investigation 1 | . . 1 . . . Extermination . | . . . . . . Reinforcement 6 | . 3 . . . 3 Assault . | . . . . . . Garrison . | . . . . . . Intercept . | . . . . . . Searches Triggered . | . . . . . . Construction Impeded . | . . . . . . Haulers Reinforced . | . . . . . . Active Scanning Responses . | . . . . . . Cargo Convoy Interrupts . | . . . . . . Stealth | -11 -10 -10 -10 -8 -6 --------- Run | Yrd Mat Min Sub Rec Fac Distress Signals 1 | . 1 . . . . Communications Jammed . | . . . . . . Distress Signals . | . . . . . . Times Spotted 60 | . 22 . 24 3 11 Peak Tracking Total 8 | . 3 . 6 2 8 Tactical Retreats 4 | . . . 3 . 1 Traps | -11 -10 -10 -10 -8 -6 ------- Run | Yrd Mat Min Sub Rec Fac Traps Triggered 1 | . 1 . . . . Indirectly . | . . . . . . Trap Hack Attempts . | . . . . . . Triggered . | . . . . . . Disarmed . | . . . . . . Reprogrammed . | . . . . . . Reused . | . . . . . . Traps Extracted . | . . . . . . Installed . | . . . . . . Triggered . | . . . . . . Machines | -11 -10 -10 -10 -8 -6 ---------- Run | Yrd Mat Min Sub Rec Fac Machines Disabled 5 | . 2 . 2 1 . Max in Single Turn 2 | . 2 . 1 1 . Machines Repaired . | . . . . . . Machines Dismantled . | . . . . . . Machines Sabotaged . | . . . . . . Overloaded Fab Kills . | . . . . . . Hacking | -11 -10 -10 -10 -8 -6 --------- Run | Yrd Mat Min Sub Rec Fac Machines Accessed 7 | . 1 1 . 5 . Terminals 2 | . 1 . . 1 . Fabricators . | . . . . . . Repair Stations . | . . . . . . Recycling Units 4 | . . . . 4 . Scanalyzers . | . . . . . . Garrison Access . | . . . . . . Total Hacks 12 | . 3 1 . 8 . Successful 6 | . 1 1 . 4 . Failed 6 | . 2 . . 4 . Catastrophic 1 | . . . . 1 . Database Lockouts . | . . . . . . Manual 4 | . 3 . . 1 . Terminals 4 | . 3 . . 1 . Fabricators . | . . . . . . Repair Stations . | . . . . . . Recycling Units 7 | . . . . 7 . Scanalyzers . | . . . . . . Garrison Access . | . . . . . . Terminal Hacks 1 | . . 1 . . . Open Door 1 | . . 1 . . . Fabricator Hacks . | . . . . . . Repair Station Hacks . | . . . . . . Recycling Unit Hacks 4 | . . . . 4 . Retrieve Components 4 | . . . . 4 . Scanalyzer . | . . . . . . Garrison Access Hacks . | . . . . . . Unauthorized Hacks 1 | . 1 . . . . Terminals 1 | . 1 . . . . Botnet 1 | . 1 . . . . Fabricators . | . . . . . . Repair Stations . | . . . . . . Recycling Units . | . . . . . . Scanalyzers . | . . . . . . Garrison Access . | . . . . . . Data Cores Recovered 1 | . 1 . . . . Used . | . . . . . . Hacking Detections 3 | . 1 . . 2 . Full Trace Events 1 | . . . . 1 . Feedback Events . | . . . . . . Feedback Blocked . | . . . . . . Robot Schematics Acquired . | . . . . . . Robots Built . | . . . . . . Authchips . | . . . . . . Time . | . . . . . . Total Robot Build Rating . | . . . . . . Part Schematics Acquired . | . . . . . . Parts Built . | . . . . . . Authchips . | . . . . . . Time . | . . . . . . Total Part Build Rating . | . . . . . . Parts Repaired . | . . . . . . Time . | . . . . . . Parts Recycled . | . . . . . . Recycled Matter . | . . . . . . Retrieved Matter . | . . . . . . Retrieved Components 19 | . . . . 19 . Parts Scanalyzed . | . . . . . . Part Schematics Acquired . | . . . . . . Parts Damaged . | . . . . . . Bothacking | -11 -10 -10 -10 -8 -6 ------------ Run | Yrd Mat Min Sub Rec Fac Used RIF Installer . | . . . . . . Robots Hacked . | . . . . . . Non-combat . | . . . . . . Combat . | . . . . . . Robot Hacks Applied . | . . . . . . Relay Couplers Released . | . . . . . . Fabnet Peak Effective % . | . . . . . . Robots Rewired . | . . . . . . Allies Hacked . | . . . . . . Hacks Repelled . | . . . . . . Allies | -11 -10 -10 -10 -8 -6 -------- Run | Yrd Mat Min Sub Rec Fac Total Allies 3 | . . 3 . . . Largest Group 3 | . . 3 3 1 . Highest-Rated Group 40 | . . 40 40 6 . Highest-Rated Ally 16 | . . 16 16 6 . Total Orders . | . . . . . . Ally Attacks 33 | . . . 33 . . Total Damage 326 | . . . 326 . . Kills 3 | . . . 3 . . Allies Corrupted . | . . . . . . Allies Melted 1 | . . . 1 . . Intel | -11 -10 -10 -10 -8 -6 ------- Run | Yrd Mat Min Sub Rec Fac Robot Analysis Total . | . . . . . . Derelict Logs Recovered 2 | . . 1 1 . . Drone Launches . | . . . . . . Drone Recoveries . | . . . . . . Exploration | -11 -10 -10 -10 -8 -6 ------------- Run | Yrd Mat Min Sub Rec Fac Turns Passed 5282 | 84 813 847 783 2331 424 Spaces Moved 2388 | 50 375 309 259 1246 149 Core 119 | 30 . . . 65 24 Treads . | . . . . . . Legs 1417 | 20 375 309 259 331 123 Wheels 852 | . . . . 850 2 Hover . | . . . . . . Flight . | . . . . . . Fastest Speed 50 | 50 120 260 260 120 50 Average Speed 199 | 146 170 260 283 174 225 Slowest Speed 1150 | 250 260 260 330 250 1150 Overloaded Moves . | . . . . . . Propulsion Burnouts . | . . . . . . Robots Hopped . | . . . . . . Cave-ins Triggered . | . . . . . . Exploration Rate (%) 39 | 5 58 52 22 98 3 Regions Visited 5 Branch Regions 3 Pre-discovered Areas 2 | . . 2 . . . Known Exits Taken . | . . . . . . Unknown Exits Taken 5 | 1 1 1 1 1 . Scrap Searched 2 | . . 1 1 . . Spaces Dug 13 | . 2 11 . . . Terrain Destroyed 87 | . 50 11 17 9 . Melee 13 | . 2 11 . . . Projectile 9 | . . . . 9 . AOE 65 | . 48 . 17 . . Terrain Rammed . | . . . . . . Walls Destroyed . | . . . . . . Machines Disabled . | . . . . . . Actions | -11 -10 -10 -10 -8 -6 --------- Run | Yrd Mat Min Sub Rec Fac Total 2701 | 57 501 343 287 1319 194 Wait 63 | . 51 . . 8 4 Move 2383 | 49 374 308 258 1245 149 Hop . | . . . . . . Pick Up 50 | . 25 10 5 5 5 Fast Attach 9 | 6 1 . . . 2 Attach 8 | . 1 1 . 1 5 Detach 5 | . . . . 3 2 Swap 18 | 2 6 2 8 . . Drop 35 | . 9 10 5 11 . Fire 101 | . 32 . 11 46 12 Melee 29 | . 2 12 . . 15 Ram . | . . . . . . Kick . | . . . . . . Crush . | . . . . . . Escape Stasis . | . . . . . . Rewire . | . . . . . . Trap . | . . . . . . Miscellaneous . | . . . . . . Route ------- -11/Scrapyard -10/Materials (discovered 2 exits: [*Mat] / *Min) -10/Mines (discovered 2 exits: [*Mat] / [*Sub]) -10/Subcaves (discovered 3 exits: [*Mat x2] / *Rec) -8/Recycling -6/Factory History --------- Turn | Location | Event 41 | -11/Scrapyard | Discovered new exit (range 16) 85 | -11/Scrapyard | Entered Materials 267 | -10/Materials | Discovered new exit (range 16) 317 | -10/Materials | Build established: Mutant 650 | -10/Materials | Discovered new exit (range 15) 898 | -10/Materials | Entered Mines 906 | -10/Mines | Met a Derelict shopkeep closing up shop 1070 | -10/Mines | Learned location of Storage (-8) 1290 | -10/Mines | Discovered new exit (range 11) 1696 | -10/Mines | Discovered new exit (range 14) 1698 | -10/Mines | Assisted by bots powering up and referring to "LRC-V3" 1745 | -10/Mines | Entered Subcaves 1745 | -10/Subcaves | Accompanied by 3 allies 1761 | -10/Subcaves | Discovered new exit (range 13) 1891 | -10/Subcaves | Discovered new exit (range 4) 1993 | -10/Subcaves | Learned Materials stockpile data 2359 | -10/Subcaves | Shifting Twisted Machinery released Battle Cannon 2376 | -10/Subcaves | Shifting Twisted Machinery released Mak. Spear 2416 | -10/Subcaves | Discovered new exit (range 14) 2528 | -10/Subcaves | Entered Recycling 2528 | -8/Recycling | Accompanied by 1 ally 2529 | -8/Recycling | Found Scrap Engine 2989 | -8/Recycling | Build established: Construct 3769 | -8/Recycling | Discovered new exit (range 8) 4859 | -8/Recycling | Entered Factory 4859 | -6/Factory | Evolved 8 slots: Power x1, Propulsion x2, Utility x3, Weapon x2 5171 | -6/Factory | Lost 6 parts (1p2n1u2w) 5211 | -6/Factory | Core integrity fell below 50% 5276 | -6/Factory | Core integrity fell below 20% 5283 | -6/Factory | Destroyed by X-62 Marksman with Pulse Rifle Last Messages --------------- 05268_ Acquired 10 matter. 05270_ Sneak attack on K-01 Serf. 05270_ K-01 Serf destroyed. 05270_ K-01 Serf collects debris. 05271_ Wheel destroyed. 05273_ Sneak attack on R-10 Processor. 05273_ Destroyed Com. Wheel. 05273_ R-10 Processor destroyed. 05273_ K-01 Serf collects debris. 05275_ R-10 Processor collects Unknown Device. 05276_ Acquired Hvy. Assault Rifle. 05276_ Penetrated by Slug. 05277_ K-01 Serf collects debris. 05279_ Sneak attack on R-10 Processor. 05279_ Destroyed Com. Wheel. 05279_ R-10 Processor collects Hpw. Tractor Beam. 05279_ K-01 Serf collects debris. 05280_ R-10 Processor collects Remote Datajack. 05282_ Penetrated by Slug. Map ----- +----------------------------------------------------+ | ?????????????????????????????????????????????????? | | ?????????????????????????????????????????????????? | | ?????????????????????????????????????????????????? | | ?????????????????????????????????????????????????? | | ?????????????????????????????????????????????????? | | ?????????????????????????????????????????????????? | | ?????????????????????????????????????????????????? | | ?????????????????????????????????????????????????? | | ?????????????????????????????????????????????????? | | ?????????????????????????????????????????????????? | | ??????????????????????? ?????????????????????????? | | ????????????????????? ?##########??????????????? | | ???????????????????# ?# #??????????????? | | ???????????????????# ?# /// #??????????????? | | ???????????????????# # // #??????????????? | | ???????????????????# # / #??????????????? | | ???????????????????# # #??????????????? | | ???????????????????# + #??????????????? | | ???????????????????# # #??????????????? | | ???????????????????# # #??????????????? | | ???????????????????# # #??????????????? | | ???????????????????# R#####+####??????????????? | | ???????????????????# #??????????????? | | ???????????????????# #??????????????? | | ???????????????????# R % #??????????????? | | ???????????????????# @ * #??????????????? | | ???????????????????# ! !! #??????????????? | | ???????????????????########xx% ###??????????????? | | ??????????????????????????#HR #????????????????? | | ????????????############### % ##############???? | | ????????????## #%! # #???? | | ?????????????# / # """" """" #???? | | ?????????????# # % # """" """" #???? | | ?????????????# # # """" """" #???? | | ?????????????# # # """" """" #???? | | ????????????## ! # # #???? | | ????????????## % # # """" """" #???? | | ?????????????# # + """" """" #???? | | ?????????????# % % # % # """" """" #???? | | ?????????????# # # """" """" #???? | | ?????????????# %#% % # #???? | | ?????????????# # # #???? | | ?????????????##########/### % ##############???? | | ?????????????????????? %H ?????????? | | ??????????????????? % ?????? | | ??????????????? ??????? | | ??????????????"" % ??????? | | ???????????????" ???????? | | ???????????????" =###########+########### ???????? | | ??????????????? ??????????? ??????????????????? | +----------------------------------------------------+ Best States ------------- Heat Dissipation 37 Energy Generation 12 Energy Capacity 250 Matter Stores 300 Matter Capacity 300 Sight Range 16 Robot Scan Range 14 Terrain Scan Density 10 Armor Coverage 800 Evasion (%) 55 Salvage Targeting 1 Item Schematics ----------------- None Robot Schematics ------------------ None Fabricated ------------ Nothing Alien Tech Used ----------------- None Achievements -------------- None Challenges ------------ None Game ------ Seed NuclearBombardmentGun Manual? 0 Play Time 00:32:41 Cumulative 54.8 hours Start 2024.04.14 @ 15:26:33 End 2024.04.14 @ 15:59:09 Sessions 1 Manual Loads 0 Difficulty Rogue Special Mode None Game No. 63 Rogue 63 Adventurer 0 Explorer 0 Win Type - Total 0 Types 0/0/0/0/0/0/0/0/0 Lore% 17 Gallery% 37 Achievement% 28 Wizard Run 0 Options --------- Layout 1 ASCII 0 Keyboard 1 Movement Vi Keybinds 0 Fullscreen 1 Font 24/Smallcaps Map View 50x35 Zoom Use 0% Tactical HUD 1 Map Filters NONE Filters NONE Steam 1 RUN: 08672576-c6ca-4e40-ab09-680ee95f96a9